Workbook

Sheet {PH List} (hidden)
A1: =RIGHT(CELL("filename", A1), LEN(CELL("filename", A1)) - SEARCH("]", CELL("filename", A1))) -> {PH List}
D4: Date | E4: Description | F4: Link | G4: Reference
A6: Input_Output
D7: 2012-10-30 | E7: Temporary Placeholder | F7: =Input_Output!#REF! ->  | G7: Input_Output!$E$12
D8: 2012-10-30 | E8: Temporary Placeholder | F8: =Input_Output!$E$43 -> Levensduur te vervangen onderdeel | G8: Input_Output!$E$54
A10: Calc
D11: 2012-10-30 | E11: Temporary Placeholder | F11: =Calc!$E$22 -> 0 | G11: Calc!$E$22
D12: 2012-10-30 | E12: Temporary Placeholder | F12: =Calc!$E$40 -> 0 | G12: Calc!$E$40
D13: 2012-10-30 | E13: Temporary Placeholder | F13: =Calc!$E$98 -> 0 | G13: Calc!$E$98
D14: 2012-10-30 | E14: Temporary Placeholder | F14: =Calc!$E$149 -> Opbrengst OT (GS) | G14: Calc!$E$154
D15: 2012-10-30 | E15: Temporary Placeholder | F15: =Calc!$E$153 -> 0 | G15: Calc!$E$158
D16: 2012-10-30 | E16: Temporary Placeholder | F16: =Calc!$E$169 -> Opbrengst OT (WKK) | G16: Calc!$E$172
D17: 2012-10-30 | E17: Temporary Placeholder | F17: =Calc!$E$173 -> 0 | G17: Calc!$E$176
D18: 2012-10-30 | E18: Temporary Placeholder | F18: =Calc!$E$264 -> Afschrijvingen POS | G18: Calc!$E$270
D19: 2012-10-30 | E19: Temporary Placeholder | F19: =Calc!$E$339 -> 0 | G19: Calc!$E$345
D20: 2012-10-30 | E20: Temporary Placeholder | F20: =Calc!$E$347 -> 0 | G20: Calc!$E$353
A22: FinResBedr

Sheet Input_Output
A1: Onrendabele Topberekening
A2: =F3 -> 1
E3: Actieve inputkolom | F3: 1 | H3: =MATCH($F3, I3:AA3, FALSE) ->  | P3: ,,,
F4: Constante | G4: Eenheid
A5: Outputs
C6: Onrendabele Top (basis productie groene stroom)
E7: =Calc!E509 -> Onrendabele Top Projectfinanciering | F7: =IF(F17="WKB","n.v.t.",Calc!F509) ->  | G7: =Calc!G509 -> Euro/MWh
E8: =Calc!E$515 -> Check rendement Project na belastingen Projectfinanciering | F8: =Calc!F$515 ->  | G8: =Calc!G$515 -> Check
C9: Onrendabele Top (basis warmtekrachtbesparing)
E10: =Calc!E510 -> Onrendabele Top Projectfinanciering | F10: =IF(F17="GS productie","n.v.t.",Calc!F510) ->  | G10: =Calc!G510 -> Euro/MWh
E11: =Calc!E$516 -> Check rendement Project na belastingen Projectfinanciering | F11: =Calc!F$516 ->  | G11: =Calc!G$516 -> Check
E12: Run macro "goalseek" om OT obv Projectfinanciering te berekenen
A14: Inputs
C16: Algemeen
E17: OT obv GS productie of WKB? | F17: =INDEX(I17:AA17, $H$3) ->  | G17: GS productie/WKB
E18: Particulier of bedrijf? | F18: bedr | G18: part/bedr
C20: Productie groene stroom
E21: Eenheid van bruto elektrisch vermogen | F21: =INDEX(I21:AA21, $H$3) ->  | G21: kWe of kWth
E22: Bruto elektrisch vermogen | G22: =F21 -> 
E23: Bruto elektrisch vermogen | G23: kWe
E24: Bedrijfstijd/vollasturen | G24: Uren/jaar
E25: Economische levensduur | G25: Jaar
E26: Bruto elektrisch rendement | G26: [%]
C28: WKK
E29: Netto thermisch rendement WKK | F29: =INDEX(I29:AA29, $H$3) ->  | G29: [%]
E30: Referentierendement WKK Vla (thermisch) | G30: [%]
E31: Referentierendement WKK Vla (elektrisch) | G31: [%]
E32: Referentierendement WKK Eu (thermisch) | G32: [%]
E33: Referentierendement WKK Eu (elektrisch) | G33: [%]
E34: Referentierendement ketel | G34: [%]
C36: Kosten
E37: Investeringskosten | F37: =INDEX(I37:AA37, $H$3) ->  | G37: ="Euro/" & F21 -> 
E38: Onderhoudskosten vast | F38: =INDEX(I38:AA38, $H$3) ->  | G38: ="Euro/" & F21 -> 
E39: Onderhoudskosten variabel | F39: =INDEX(I39:AA39, $H$3) ->  | G39: Euro/kWhe
E40: Overige operationele kosten | F40: =INDEX(I40:AA40, $H$3) ->  | G40: Euro/kWhe
E42: Vervangingsinvestering | F42: =INDEX(I42:AA42, $H$3) ->  | G42: Euro/kWe
E43: Levensduur te vervangen onderdeel | F43: =INDEX(I43:AA43, $H$3) ->  | G43: Jaar
E45: Kosten brandstof | F45: =INDEX(I45:AA45, $H$3) ->  | G45: Euro/kWh
E46: Brandstofkosten te vervangen brandstof | F46: =INDEX(I46:AA46, $H$3) ->  | G46: Euro/kWh
E47: Effectiviteit brandstofsubstitutie | F47: =INDEX(I47:AA47, $H$3) ->  | G47: [%]
E49: Hoeveelheid ingaande stoffen (GFT,…) | F49: =INDEX(I49:AA49, $H$3) ->  | G49: ton
E50: Kosten (+) / opbrengsten (-) ingaande stoffen | F50: =INDEX(I50:AA50, $H$3) ->  | G50: Euro/ton
E52: Hoeveelheid uitgaande stoffen (digestaat, slib) | F52: =INDEX(I52:AA52, $H$3) ->  | G52: ton
E53: Kosten (+) / opbrengsten (-) uitgaande stoffen | F53: =INDEX(I53:AA53, $H$3) ->  | G53: Euro/ton
C55: Inkomsten
E56: Aandeel zelfafname stroom | F56: =INDEX(I56:AA56, $H$3) ->  | G56: [%]
E57: Marktprijs stroom zelfafname | G57: Euro/kWh
E58: Marktprijs stroom verkoop | G58: Euro/kWh
E59: Injectietarief/Kosten onbalans | G59: Euro/kWh
E60: Eigenverbruik installatie voor berekening elektriciteitsproductie | G60: [%]
E61: WKK eigenverbruik voor berekening WKB | G61: [%]
E63: GSC van toepassing? | F63: =INDEX(I63:AA63, $H$3) ->  | G63: ja/nee
E64: Prijs GSC | F64: =INDEX(I64:AA64, $H$3) ->  | G64: Euro/MWh
E65: Eigenverbruik installatie voor berekening GSC | F65: =INDEX(I65:AA65, $H$3) ->  | G65: [%]
E67: WKK certificaten van toepassing? | F67: =INDEX(I67:AA67, $H$3) ->  | G67: ja/nee
E68: Prijs WKK certificaat | F68: =INDEX(I68:AA68, $H$3) ->  | G68: Euro/MWh
C70: Fiscale en steunmaatregelen bedrijven
E71: Vennootschapsbelasting | F71: =INDEX(I71:AA71, $H$3) ->  | G71: [%]
E73: Investeringsaftrek van toepassing? | F73: =INDEX(I73:AA73, $H$3) ->  | G73: ja/nee
E74: Investeringsaftrek | F74: =INDEX(I74:AA74, $H$3) ->  | G74: [%]
E75: Gedeelte van de investering in aanmerking IA | F75: =INDEX(I75:AA75, $H$3) ->  | G75: [%]
E77: Investeringssteun van toepassing? | F77: =INDEX(I77:AA77, $H$3) ->  | G77: ja/nee
E78: Investeringssteun opdat OT = 0 bij PF? | F78: =INDEX(I78:AA78, $H$3) ->  | G78: ja/nee
E79: Steunpercentage investeringssteun | F79: =INDEX(I79:AA79, $H$3) ->  | G79: [%]
E80: Maximum investeringssteun | F80: =INDEX(I80:AA80, $H$3) ->  | G80: Euro
E81: Totale meerkost | F81: =INDEX(I81:AA81, $H$3) ->  | G81: [%]
C83: Financiering
E84: Groene lening? | F84: nee | G84: ja/nee
E85: Rente lening voor interestbonificatie | G85: [%]
E86: Interestbonificatie groene lening | G86: [%]
E88: Rente lening | F88: =INDEX(I88:AA88, $H$3) ->  | G88: [%]
E89: Equity share in investering | F89: =INDEX(I89:AA89, $H$3) ->  | G89: [%]
E90: Debt share in investering | F90: =INDEX(I90:AA90, $H$3) ->  | G90: [%]
E92: Project IRR na belastingen | F92: =INDEX(I92:AA92, $H$3) ->  | G92: [%]
C94: Perioden
E95: Termijn lening | F95: =INDEX(I95:AA95, $H$3) ->  | G95: Jaar
E96: Constructieperiode | F96: =INDEX(I96:AA96, $H$3) ->  | G96: Jaar
E97: Afschrijvingstermijn | F97: =INDEX(I97:AA97, $H$3) ->  | G97: Jaar
E98: Beleidsperiode | F98: =INDEX(I98:AA98, $H$3) ->  | G98: Jaar
C99: Let op! De indexen moeten zelf nog ingevuld worden in "Input_Prijsindex" in kolom K, vanaf cel "K14".
C100: Prijsparameters
E101: Prijsparameter elektriciteit zelfafname | F101: =INDEX(I101:AA101, $H$3) -> 
E102: Prijsparameter elektriciteit verkoop
E103: Prijsparameter GSC
E104: Prijsparameter WKC
E105: Prijsparameter brandstof
E106: Prijsparameter te vervangen brandstof
E107: Prijsparameter operationele kosten
E108: Prijsparameter kosten/opbrengsten ingaande stoffen
E109: Prijsparameter kosten/opbrengsten uitgaande stoffen
C111: Prijsevolutie geïntegreerd in de OT berekening
E112: Prijsevolutie IN de OT berekening? | F112: =INDEX(I112:AA112, $H$3) ->  | G112: ja/nee
D114: Prijsevolutie bij simulatie van een OT-pad
E115: Prijsevolutie bij simulatie OT-pad? | F115: =INDEX(I115:AA115, $H$3) ->  | G115: ja/nee | Z115: ja
E116: Jaarlijkse prijsevolutie investeringskost | F116: =INDEX(I116:AA116, $H$3) ->  | G116: [%]

Sheet Input_Prijsindex
A1: =Input_Output!A1 -> Onrendabele Topberekening
J3: Jaar
F4: Constante | G4: Eenheid | H4: Totaal | J4: =J9 -> 0 | K4: =K9 -> 1 | L4: 2 | M4: 3 | N4: 4 | O4: 5 | P4: 6 | Q4: 7 | R4: 8 | S4: 9 | T4: 10 | U4: 11 | V4: 12 | W4: 13 | X4: 14 | Y4: 15 | Z4: 16 | AA4: 17 | AB4: 18 | AC4: 19 | AD4: 20 | AE4: 21 | AF4: 22 | AG4: 23 | AH4: 24 | AI4: 25 | AJ4: 26 | AK4: 27 | AL4: 28 | AM4: 29 | AN4: 30
A6: Prijsindex
B8: Jaartallen
E9: Jaar | G9: Volgnr | J9: 0 | K9: =J9 +1 -> 1 | L9: 2 | M9: 3 | N9: 4 | O9: 5 | P9: 6 | Q9: 7 | R9: 8 | S9: 9 | T9: 10 | U9: 11 | V9: 12 | W9: 13 | X9: 14 | Y9: 15 | Z9: 16 | AA9: 17 | AB9: 18 | AC9: 19 | AD9: 20 | AE9: 21 | AF9: 22 | AG9: 23 | AH9: 24 | AI9: 25 | AJ9: 26 | AK9: 27 | AL9: 28 | AM9: 29 | AN9: 30
B11: Jaarlijkse prijsevolutie geïntegreerd in de OT berekening
E13: =E$9 -> Jaar | F13: =F$9 -> 0 | G13: Volgnr | H13: 0 | I13: 0 | J13: 0 | K13: 1 | L13: 2 | M13: 3 | N13: 4 | O13: 5 | P13: 6 | Q13: 7 | R13: 8 | S13: 9 | T13: 10 | U13: 11 | V13: 12 | W13: 13 | X13: 14 | Y13: 15 | Z13: 16 | AA13: 17 | AB13: 18 | AC13: 19 | AD13: 20 | AE13: 21 | AF13: 22 | AG13: 23 | AH13: 24 | AI13: 25 | AJ13: 26 | AK13: 27 | AL13: 28 | AM13: 29 | AN13: 30
E14: Elektriciteit productiekost | G14: [%] | I14: 0.05 | J14: 0 | K14: 0.02 | L14: =$K14 -> 0.02 | M14: =$K14 -> 0.02 | N14: 0.02 | O14: 0.02 | P14: 0.02 | Q14: 0.02 | R14: 0.02 | S14: 0.02 | T14: 0.02 | U14: 0.02 | V14: 0.02 | W14: 0.02 | X14: 0.02 | Y14: 0.02 | Z14: 0.02 | AA14: 0.02 | AB14: 0.02 | AC14: 0.02 | AD14: 0.02 | AE14: 0.02 | AF14: 0.02 | AG14: 0.02 | AH14: 0.02 | AI14: 0.02 | AJ14: 0.02 | AK14: 0.02 | AL14: 0.02 | AM14: 0.02 | AN14: 0.02
E15: Elektriciteit eindverbruiker | G15: [%] | I15: 0.035 | J15: 0 | K15: 0.035 | L15: 0.035 | M15: =$K15 -> 0.035 | N15: 0.035 | O15: 0.035 | P15: 0.035 | Q15: 0.035 | R15: 0.035 | S15: 0.035 | T15: 0.035 | U15: 0.035 | V15: 0.035 | W15: 0.035 | X15: 0.035 | Y15: 0.035 | Z15: 0.035 | AA15: 0.035 | AB15: 0.035 | AC15: 0.035 | AD15: 0.035 | AE15: 0.035 | AF15: 0.035 | AG15: 0.035 | AH15: 0.035 | AI15: 0.035 | AJ15: 0.035 | AK15: 0.035 | AL15: 0.035 | AM15: 0.035 | AN15: 0.035
... 16 more rows

Sheet Calc
A1: =Input_Output!A1 -> Onrendabele Topberekening
A2: =Input_Output!F3 -> 1
J3: Jaar
F4: Constante | G4: Eenheid | H4: Totaal | J4: =J9 -> 0 | K4: 1 | L4: 2 | M4: 3 | N4: 4 | O4: 5 | P4: 6 | Q4: 7 | R4: 8 | S4: 9 | T4: 10 | U4: 11 | V4: 12 | W4: 13 | X4: 14 | Y4: 15 | Z4: 16 | AA4: 17 | AB4: 18 | AC4: 19 | AD4: 20 | AE4: 21 | AF4: 22 | AG4: 23 | AH4: 24 | AI4: 25 | AJ4: 26 | AK4: 27 | AL4: 28 | AM4: 29 | AN4: 30
A6: Algemeen
B8: Jaartallen
E9: Jaar | G9: Volgnr | J9: 0 | K9: =J9 +1 -> 1 | L9: =K9 +1 -> 2 | M9: 3 | N9: 4 | O9: 5 | P9: 6 | Q9: 7 | R9: 8 | S9: 9 | T9: 10 | U9: 11 | V9: 12 | W9: 13 | X9: 14 | Y9: 15 | Z9: 16 | AA9: 17 | AB9: 18 | AC9: 19 | AD9: 20 | AE9: 21 | AF9: 22 | AG9: 23 | AH9: 24 | AI9: 25 | AJ9: 26 | AK9: 27 | AL9: 28 | AM9: 29 | AN9: 30
B11: Constructieperiode
E12: =Input_Output!E$96 -> Constructieperiode | F12: =Input_Output!F$96 ->  | G12: =Input_Output!G$96 -> Jaar
E13: =E$9 -> Jaar | F13: =F$9 -> 0 | G13: Volgnr | H13: 0 | I13: 0 | J13: 0 | K13: 1 | L13: 2 | M13: 3 | N13: 4 | O13: 5 | P13: 6 | Q13: 7 | R13: 8 | S13: 9 | T13: 10 | U13: 11 | V13: 12 | W13: 13 | X13: 14 | Y13: 15 | Z13: 16 | AA13: 17 | AB13: 18 | AC13: 19 | AD13: 20 | AE13: 21 | AF13: 22 | AG13: 23 | AH13: 24 | AI13: 25 | AJ13: 26 | AK13: 27 | AL13: 28 | AM13: 29 | AN13: 30
E14: Constructieperiode Vlag | G14: Vlag | H14: =SUM(J14:AN14) ->  | J14: =IF( J13 < $F12, 1, 0) ->  | K14: =IF( K13 < $F12, 1, 0) -> 
B16: Economische levensduur
E17: =Input_Output!E$25 -> Economische levensduur | F17: =Input_Output!F$25 ->  | G17: =Input_Output!G$25 -> Jaar
E18: =Input_Output!E$96 -> Constructieperiode | F18: =Input_Output!F$96 ->  | G18: =Input_Output!G$96 -> Jaar
E19: =E$9 -> Jaar | F19: =F$9 -> 0 | G19: Volgnr | H19: 0 | I19: 0 | J19: 0 | K19: 1 | L19: 2 | M19: 3 | N19: 4 | O19: 5 | P19: 6 | Q19: 7 | R19: 8 | S19: 9 | T19: 10 | U19: 11 | V19: 12 | W19: 13 | X19: 14 | Y19: 15 | Z19: 16 | AA19: 17 | AB19: 18 | AC19: 19 | AD19: 20 | AE19: 21 | AF19: 22 | AG19: 23 | AH19: 24 | AI19: 25 | AJ19: 26 | AK19: 27 | AL19: 28 | AM19: 29 | AN19: 30
E20: Economische levensduur Vlag | G20: Vlag | H20: =SUM(J20:AN20) ->  | J20: =IF( AND( J19 >= $F18, J19 < ($F17 + $F18)), 1, 0) ->  | K20: =IF( AND( K19 >= $F18, K19 < ($F17 + $F18)), 1, 0) -> 
B22: Vervangingsinvestering
E23: =Input_Output!E$43 -> Levensduur te vervangen onderdeel | F23: =Input_Output!F$43 ->  | G23: =Input_Output!G$43 -> Jaar
E24: =E$20 -> Economische levensduur Vlag | F24: =F$20 -> 0 | G24: Vlag | I24: 0
E25: Cumulatieve economische levensduur | G25: Volgnr | J25: =IF( J24 = 0, 0, I25 + J24) -> 
E26: Vervangingsinvestering Vlag | G26: Vlag | J26: =IF( $F23 + 1 = J25, 1, 0) -> 
B28: Beleidsperiode
E29: =Input_Output!E98 -> Beleidsperiode | F29: =Input_Output!F98 ->  | G29: =Input_Output!G98 -> Jaar
E30: =Input_Output!E$96 -> Constructieperiode | F30: =Input_Output!F$96 ->  | G30: =Input_Output!G$96 -> Jaar
E31: =E$9 -> Jaar | F31: =F$9 -> 0 | G31: Volgnr | H31: 0 | I31: 0 | J31: 0 | K31: 1 | L31: 2 | M31: 3 | N31: 4 | O31: 5 | P31: 6 | Q31: 7 | R31: 8 | S31: 9 | T31: 10 | U31: 11 | V31: 12 | W31: 13 | X31: 14 | Y31: 15 | Z31: 16 | AA31: 17 | AB31: 18 | AC31: 19 | AD31: 20 | AE31: 21 | AF31: 22 | AG31: 23 | AH31: 24 | AI31: 25 | AJ31: 26 | AK31: 27 | AL31: 28 | AM31: 29 | AN31: 30
E32: Beleidsperiode Vlag | G32: Vlag | H32: =SUM(J32:AN32) ->  | J32: =IF( AND( J31 >= $F30, J31 < ($F29 + $F30)), 1, 0) ->  | K32: =IF( AND( K31 >= $F30, K31 < ($F29 + $F30)), 1, 0) -> 
B34: Afschrijftermijn
E35: =Input_Output!E$97 -> Afschrijvingstermijn | F35: =Input_Output!F$97 ->  | G35: =Input_Output!G$97 -> Jaar
E36: =Input_Output!E$96 -> Constructieperiode | F36: =Input_Output!F$96 ->  | G36: =Input_Output!G$96 -> Jaar
E37: =E$9 -> Jaar | F37: =F$9 -> 0 | G37: Volgnr | H37: 0 | I37: 0 | J37: 0 | K37: 1 | L37: 2 | M37: 3 | N37: 4 | O37: 5 | P37: 6 | Q37: 7 | R37: 8 | S37: 9 | T37: 10 | U37: 11 | V37: 12 | W37: 13 | X37: 14 | Y37: 15 | Z37: 16 | AA37: 17 | AB37: 18 | AC37: 19 | AD37: 20 | AE37: 21 | AF37: 22 | AG37: 23 | AH37: 24 | AI37: 25 | AJ37: 26 | AK37: 27 | AL37: 28 | AM37: 29 | AN37: 30
E38: Afschrijftermijn Vlag | G38: Vlag | H38: =SUM(J38:AN38) ->  | J38: =IF( AND( J37 >= $F36, J37 < ($F35 + $F36)), 1, 0) ->  | K38: =IF( AND( K37 >= $F36, K37 < ($F35 + $F36)), 1, 0) -> 
B40: Leentermijn
E41: =Input_Output!E$95 -> Termijn lening | F41: =Input_Output!F$95 ->  | G41: =Input_Output!G$95 -> Jaar
E42: =Input_Output!E$96 -> Constructieperiode | F42: =Input_Output!F$96 ->  | G42: =Input_Output!G$96 -> Jaar
E43: =E$9 -> Jaar | F43: =F$9 -> 0 | G43: Volgnr | H43: 0 | I43: 0 | J43: 0 | K43: 1 | L43: 2 | M43: 3 | N43: 4 | O43: 5 | P43: 6 | Q43: 7 | R43: 8 | S43: 9 | T43: 10 | U43: 11 | V43: 12 | W43: 13 | X43: 14 | Y43: 15 | Z43: 16 | AA43: 17 | AB43: 18 | AC43: 19 | AD43: 20 | AE43: 21 | AF43: 22 | AG43: 23 | AH43: 24 | AI43: 25 | AJ43: 26 | AK43: 27 | AL43: 28 | AM43: 29 | AN43: 30
E44: Leentermijn Vlag | G44: Vlag | H44: =SUM(J44:AN44) ->  | J44: =IF( AND( J43 >= $F42, J43 < ($F41 + $F42)), 1, 0) ->  | K44: =IF( AND( K43 >= $F42, K43 < ($F41 + $F42)), 1, 0) -> 
E45: Cumulatieve leenperiode | G45: Volgnr | J45: =IF( J44 = 0, 0, I45 + J44) ->  | K45: =IF( K44 = 0, 0, J45 + K44) -> 
B47: Discontovoeten
E48: =Input_Output!E$92 -> Project IRR na belastingen | F48: =Input_Output!F$92 ->  | G48: =Input_Output!G$92 -> [%]
E49: =E$9 -> Jaar | F49: =F$9 -> 0 | G49: Volgnr | H49: 0 | I49: 0 | J49: 0 | K49: 1 | L49: 2 | M49: 3 | N49: 4 | O49: 5 | P49: 6 | Q49: 7 | R49: 8 | S49: 9 | T49: 10 | U49: 11 | V49: 12 | W49: 13 | X49: 14 | Y49: 15 | Z49: 16 | AA49: 17 | AB49: 18 | AC49: 19 | AD49: 20 | AE49: 21 | AF49: 22 | AG49: 23 | AH49: 24 | AI49: 25 | AJ49: 26 | AK49: 27 | AL49: 28 | AM49: 29 | AN49: 30
E50: Discontofactor Project IRR na belastingen | G50: Factor | J50: =1 / (1 + $F48) ^ J49 ->  | K50: =1 / (1 + $F48) ^ K49 ->  | L50: =1 / (1 + $F48) ^ L49 -> 
B52: Prijsindexen
E54: Sensitiviteitsanalyse? | F54: Nee
E56: =$E66 -> Prijsparameter elektriciteit zelfafname | F56: =VLOOKUP($F66,Prijsevolutie,7,FALSE) ->  | G56: =$G66 -> 0
E57: =$E67 -> Prijsparameter elektriciteit verkoop | F57: =VLOOKUP($F67,Prijsevolutie,7,FALSE) -> 
E58: =$E68 -> Prijsparameter GSC | F58: =VLOOKUP($F68,Prijsevolutie,7,FALSE) ->  | G58: =$G68 -> 0
E59: Prijsparameter WKC | G59: 0
E60: Prijsparameter brandstof | G60: 0
E61: Prijsparameter te vervangen brandstof | G61: 0
E62: Prijsparameter operationele kosten | G62: 0
E63: Prijsparameter kosten/opbrengsten ingaande stoffen | G63: 0
E64: Prijsparameter kosten/opbrengsten uitgaande stoffen | G64: 0
E66: =Input_Output!E101 -> Prijsparameter elektriciteit zelfafname | F66: =Input_Output!F101 ->  | G66: =Input_Output!G101 -> 0
E67: =Input_Output!E102 -> Prijsparameter elektriciteit verkoop | F67: =Input_Output!F102 -> 
E68: =Input_Output!E103 -> Prijsparameter GSC | F68: =Input_Output!F103 ->  | G68: =Input_Output!G103 -> 0
E69: =Input_Output!E104 -> Prijsparameter WKC | F69: =Input_Output!F104 ->  | G69: =Input_Output!G104 -> 0
E70: =Input_Output!E105 -> Prijsparameter brandstof | F70: =Input_Output!F105 ->  | G70: =Input_Output!G105 -> 0
E71: =Input_Output!E106 -> Prijsparameter te vervangen brandstof | F71: =Input_Output!F106 ->  | G71: =Input_Output!G106 -> 0
E72: =Input_Output!E107 -> Prijsparameter operationele kosten | F72: =Input_Output!F107 ->  | G72: =Input_Output!G107 -> 0
E73: =Input_Output!E108 -> Prijsparameter kosten/opbrengsten ingaande stoffen | F73: =Input_Output!F108 ->  | G73: =Input_Output!G108 -> 0
E74: =Input_Output!E109 -> Prijsparameter kosten/opbrengsten uitgaande stoffen | F74: =Input_Output!F109 ->  | G74: =Input_Output!G109 -> 0
E76: =Input_Output!E$112 -> Prijsevolutie IN de OT berekening? | F76: =Input_Output!F$112 ->  | G76: =Input_Output!G$112 -> ja/nee
E78: =E9 -> Jaar | F78: 0 | G78: Volgnr | H78: 0 | I78: 0 | J78: 0 | K78: 1 | L78: 2 | M78: 3 | N78: 4 | O78: 5 | P78: 6 | Q78: 7 | R78: 8 | S78: 9 | T78: 10 | U78: 11 | V78: 12 | W78: 13 | X78: 14 | Y78: 15 | Z78: 16 | AA78: 17 | AB78: 18 | AC78: 19 | AD78: 20 | AE78: 21 | AF78: 22 | AG78: 23 | AH78: 24 | AI78: 25 | AJ78: 26 | AK78: 27 | AL78: 28 | AM78: 29 | AN78: 30
E79: ="Prijsindex " & RIGHT(E66, LEN(E66) - 14) -> Prijsindex elektriciteit zelfafname | G79: Factor | J79: =IF($F$76="nee",1,IF($F$54="Ja",(1+$F$56)^J$78,VLOOKUP($F66,Prijsindex,(J$78+6),FALSE))) -> 
E80: Prijsindex elektriciteit verkoop | G80: Factor | K80: =IF($F$76="nee",1,IF($F$54="Ja",(1+$F$56)^K$78,VLOOKUP($F67,Prijsindex,(K$78+6),FALSE))) -> 
E81: Prijsindex GSC | G81: Factor | J81: =IF($F$76="nee",1,IF($F$54="Ja",(1+$F$56)^J$78,VLOOKUP($F68,Prijsindex,(J$78+6),FALSE))) -> 
E82: Prijsindex WKC | G82: Factor | J82: =IF($F$76="nee",1,IF($F$54="Ja",(1+$F$56)^J$78,VLOOKUP($F69,Prijsindex,(J$78+6),FALSE))) -> 
E83: Prijsindex brandstof | G83: Factor | J83: =IF($F$76="nee",1,IF($F$54="Ja",(1+$F$56)^J$78,VLOOKUP($F70,Prijsindex,(J$78+6),FALSE))) -> 
E84: Prijsindex te vervangen brandstof | G84: Factor | J84: =IF($F$76="nee",1,IF($F$54="Ja",(1+$F$56)^J$78,VLOOKUP($F71,Prijsindex,(J$78+6),FALSE))) -> 
E85: Prijsindex operationele kosten | G85: Factor | J85: =IF($F$76="nee",1,IF($F$54="Ja",(1+$F$56)^J$78,VLOOKUP($F72,Prijsindex,(J$78+6),FALSE))) ->  | K85: =IF($F$76="nee",1,IF($F$54="Ja",(1+$F$56)^K$78,VLOOKUP($F72,Prijsindex,(K$78+6),FALSE))) -> 
E86: Prijsindex kosten/opbrengsten ingaande stoffen | G86: Factor | J86: =IF($F$76="nee",1,IF($F$54="Ja",(1+$F$56)^J$78,VLOOKUP($F73,Prijsindex,(J$78+6),FALSE))) -> 
E87: Prijsindex kosten/opbrengsten uitgaande stoffen | G87: Factor | J87: =IF($F$76="nee",1,IF($F$54="Ja",(1+$F$56)^J$78,VLOOKUP($F74,Prijsindex,(J$78+6),FALSE))) -> 
A90: Elektriciteitsproductie & Operationele kasstroom voor OT
B92: Elektriciteitsproductie
E93: =Input_Output!E$23 -> Bruto elektrisch vermogen | F93: =Input_Output!F$23 ->  | G93: =Input_Output!G$23 -> kWe
E94: =Input_Output!E$24 -> Bedrijfstijd/vollasturen | F94: =Input_Output!F$24 ->  | G94: =Input_Output!G$24 -> Uren/jaar
E95: =E$20 -> Economische levensduur Vlag | F95: 0 | G95: Vlag | I95: 0
E96: Bruto elektriciteitsproductie | G96: kWh | H96: =SUM(J96:AN96) ->  | J96: =$F93 * $F94 * J95 ->  | K96: =$F93 * $F94 * K95 -> 
B98: Marktwaarde elektriciteit
E99: =Input_Output!E$57 -> Marktprijs stroom zelfafname | F99: =Input_Output!F$57 ->  | G99: =Input_Output!G$57 -> Euro/kWh | AO99: =$F$99 * AO103 ->  | BX99: =$F$99 * BX103 ->  | EJ99: =$F$99 * EJ103 ->  | GV99: =$F$99 * GV103 -> 
E100: =Input_Output!E$60 -> Eigenverbruik installatie voor berekening elektriciteitsproductie | F100: =Input_Output!F$60 ->  | G100: =Input_Output!G$60 -> [%]
E101: =Input_Output!E$56 -> Aandeel zelfafname stroom | F101: =Input_Output!F$56 ->  | G101: =Input_Output!G$56 -> [%]
E102: =E$96 -> Bruto elektriciteitsproductie | F102: 0 | G102: kWh | I102: 0 | J102: =J$96 ->  | K102: =K$96 -> 
E103: =E$79 -> Prijsindex elektriciteit zelfafname | F103: =F$79 -> 0 | G103: Factor | H103: 0 | I103: 0
E104: Marktwaarde elektriciteit zelfafname | G104: Euro | H104: =SUM(J104:AN104) ->  | J104: =$F99 * (1-$F100) * $F101 * J102 * J103 -> 
E106: =Input_Output!E$58 -> Marktprijs stroom verkoop | F106: =Input_Output!F$58 ->  | G106: =Input_Output!G$58 -> Euro/kWh | AO106: =$F$106 * AO111 ->  | DA106: =$F$106 * DA111 ->  | FM106: =$F$106 * FM111 ->  | HY106: =$F$106 * HY111 -> 
E107: =Input_Output!E$59 -> Injectietarief/Kosten onbalans | F107: =Input_Output!F$59 ->  | G107: =Input_Output!G$59 -> Euro/kWh
E108: =Input_Output!E$60 -> Eigenverbruik installatie voor berekening elektriciteitsproductie | F108: =Input_Output!F$60 ->  | G108: =Input_Output!G$60 -> [%]
E109: Aandeel verkoop stroom | F109: =1 - F101 ->  | G109: [%]
E110: =E$96 -> Bruto elektriciteitsproductie | F110: 0 | G110: kWh | I110: 0 | J110: =J$96 ->  | K110: =K$96 -> 
E111: =E$80 -> Prijsindex elektriciteit verkoop | F111: =F$80 -> 0 | G111: Factor | H111: 0 | I111: 0
E112: Marktwaarde elektriciteit verkoop | G112: Euro | H112: =SUM(J112:AN112) ->  | J112: =($F106 -$F107) * (1-$F108) * $F109 * J110 * J111 ->  | K112: =($F106 -$F107) * (1-$F108) * $F109 * K110 * K111 ->  | L112: =($F106 -$F107) * (1-$F108) * $F109 * L110 * L111 ->  | AO112: =AO102 * AO109 * AO111 * $F$106 * (1-$F$100) ->  | DA112: =DA102 * DA109 * DA111 * $F$106 * (1-$F$100) ->  | FM112: =FM102 * FM109 * FM111 * $F$106 * (1-$F$100) ->  | HY112: =HY102 * HY109 * HY111 * $F$106 * (1-$F$100) -> 
E114: =E$104 -> Marktwaarde elektriciteit zelfafname | F114: =F$104 -> 0 | G114: Euro | I114: 0 | J114: =J$104 -> 
E115: =E$112 -> Marktwaarde elektriciteit verkoop | F115: =F$112 -> 0 | G115: Euro | I115: 0 | J115: =J$112 -> 
E116: Marktwaarde elektriciteit | G116: Euro | H116: =SUM(J116:AN116) ->  | J116: =SUM(J114:J115) ->  | K116: =SUM(K114:K115) ->  | AO116: =AO112+AO104 ->  | DA116: =DA112+DA104 ->  | FM116: =FM112+FM104 ->  | HY116: =HY112+HY104 -> 
B118: WKK waarde warmtelevering
E119: =Input_Output!E$29 -> Netto thermisch rendement WKK | F119: =Input_Output!F$29 ->  | G119: =Input_Output!G$29 -> [%]
E120: =Input_Output!E$26 -> Bruto elektrisch rendement | F120: =Input_Output!F$26 ->  | G120: =Input_Output!G$26 -> [%]
E121: =Input_Output!E$34 -> Referentierendement ketel | F121: =Input_Output!F$34 ->  | G121: =Input_Output!G$34 -> [%]
E122: =E$96 -> Bruto elektriciteitsproductie | F122: =F$96 -> 0 | G122: kWh | I122: 0
E123: WKK warmteproductie (equivalent aardgasvolume) | G123: kWh | H123: =SUM(J123:AN123) ->  | J123: =IF(OR($F$120=0,$F$121=0),0,(J122*$F119/$F120)/($F121)) ->  | K123: =IF(OR($F$120=0,$F$121=0),0,(K122*$F119/$F120)/($F121)) -> 
E125: =Input_Output!E$46 -> Brandstofkosten te vervangen brandstof | F125: =Input_Output!F$46 ->  | G125: =Input_Output!G$46 -> Euro/kWh
E126: =E$123 -> WKK warmteproductie (equivalent aardgasvolume) | F126: =+ F$123 -> 0 | G126: kWh | I126: 0
E127: =E84 -> Prijsindex te vervangen brandstof | F127: 0 | G127: Factor | H127: 0 | I127: 0
E128: Waarde WKK warmteproductie | G128: Euro | H128: =SUM(J128:AN128) ->  | J128: =$F125 * J126 * J127 ->  | K128: =$F125 * K126 * K127 -> 
B130: Besparing Primaire Brandstof
E131: =Input_Output!E$26 -> Bruto elektrisch rendement | F131: =Input_Output!F$26 ->  | G131: =Input_Output!G$26 -> [%]
E132: =Input_Output!E$47 -> Effectiviteit brandstofsubstitutie | F132: =Input_Output!F$47 ->  | G132: =Input_Output!G$47 -> [%]
E133: =E$96 -> Bruto elektriciteitsproductie | F133: =F$96 -> 0 | G133: kWh | I133: 0
E134: Besparing primaire brandstof | G134: kWh | J134: =IF($F$131=0,0,$F$132/$F$131*J133) ->  | K134: =IF($F$131=0,0,$F$132/$F$131*K133) -> 
E136: =Input_Output!E$46 -> Brandstofkosten te vervangen brandstof | F136: =Input_Output!F$46 ->  | G136: =Input_Output!G$46 -> Euro/kWh
E137: =E$134 -> Besparing primaire brandstof | F137: =F$134 -> 0 | G137: kWh | H137: 0 | I137: 0 | J137: =J$134 -> 
E138: =E84 -> Prijsindex te vervangen brandstof | F138: 0 | G138: Factor | H138: 0 | I138: 0
E139: Besparing primaire brandstof | G139: Euro | H139: =SUM(J139:AN139) ->  | J139: =$F136 * J137 * J138 ->  | K139: =$F136 * K137 * K138 -> 
B141: Opbrengst GSC
E142: =Input_Output!E$63 -> GSC van toepassing? | F142: =Input_Output!F$63 ->  | G142: =Input_Output!G$63 -> ja/nee
E143: =Input_Output!E$64 -> Prijs GSC | F143: =Input_Output!F$64 ->  | G143: =Input_Output!G$64 -> Euro/MWh
E144: Factor 1000 | F144: 1000 | G144: Factor
E145: =Input_Output!E$65 -> Eigenverbruik installatie voor berekening GSC | F145: =Input_Output!F$65 ->  | G145: =Input_Output!G$65 -> [%]
E146: =E20 -> Economische levensduur Vlag | F146: 0 | G146: Vlag | I146: 0
E147: =E$96 -> Bruto elektriciteitsproductie | F147: =F$96 -> 0 | G147: kWh | I147: 0
E148: =E81 -> Prijsindex GSC | F148: 0 | G148: Factor | H148: 0 | I148: 0
E149: Opbrengst OT (GS) | G149: Euro | H149: =SUM(J149:AN149) ->  | J149: =IF($F142 = "ja", ($F143 / $F144) * (1 - $F145) * J146 * J147 * J148, 0) ->  | K149: =IF($F142 = "ja", ($F143 / $F144) * (1 - $F145) * K146 * K147 * K148, 0) -> 
B151: Opbrengst WKC
C153: Valoriseerbare Warmtekrachtbesparing
E154: =Input_Output!E$26 -> Bruto elektrisch rendement | F154: =Input_Output!F$26 ->  | G154: =Input_Output!G$26 -> [%]
E155: =Input_Output!E$29 -> Netto thermisch rendement WKK | F155: =Input_Output!F$29 ->  | G155: =Input_Output!G$29 -> [%]
E156: =Input_Output!E$30 -> Referentierendement WKK Vla (thermisch) | F156: =Input_Output!F$30 ->  | G156: =Input_Output!G$30 -> [%]
E157: =Input_Output!E$31 -> Referentierendement WKK Vla (elektrisch) | F157: =Input_Output!F$31 ->  | G157: =Input_Output!G$31 -> [%]
E158: EVel,wkk | F158: =Input_Output!F61 ->  | G158: [%]
E159: =E$96 -> Bruto elektriciteitsproductie | F159: =F$96 -> 0 | G159: kWh | I159: 0
E160: Netto elektriciteitsproductie | G160: kWh | H160: =SUM(J160:AN160) ->  | J160: =J$159*(1-$F$158) ->  | K160: =K$159*(1-$F$158) -> 
E161: Valoriseerbare warmtekrachtbesparing | G161: kWh | H161: =SUM(J161:AN161) ->  | J161: =IF(OR($F154=0, $F156=0, $F157=0), 0, MAX(0, (1 / $F157 + $F155 / ($F156 * $F154*(1-$F158)) - 1 /( $F154*(1-$F158))) * J160 )) ->  | K161: =IF(OR($F154=0, $F156=0, $F157=0), 0, MAX(0, (1 / $F157 + $F155 / ($F156 * $F154*(1-$F158)) - 1 /( $F154*(1-$F158))) * K160 )) ->  | R161: =IF(OR($F154=0, $F156=0, $F157=0), 0, MAX(0, (1 / $F157 + $F155 / ($F156 * $F154*(1-$F158)) - 1 /( $F154*(1-$F158))) * R160 )) -> 
C163: Opbrengst WKC
E164: =Input_Output!E$67 -> WKK certificaten van toepassing? | F164: =Input_Output!F$67 ->  | G164: =Input_Output!G$67 -> ja/nee
E165: =Input_Output!E$68 -> Prijs WKK certificaat | F165: =Input_Output!F$68 ->  | G165: =Input_Output!G$68 -> Euro/MWh
E166: =E$161 -> Valoriseerbare warmtekrachtbesparing | F166: =F$161 -> 0 | G166: kWh | I166: 0
E167: Factor 1000 | F167: 1000 | G167: Factor
E168: =E82 -> Prijsindex WKC | F168: 0 | G168: Factor | H168: 0 | I168: 0
E169: Opbrengst OT (WKK) | G169: Euro | H169: =SUM(J169:AN169) ->  | J169: =IF($F164="ja", $F165 * J166 / $F167 * J168, 0) ->  | K169: =IF($F164="ja", $F165 * K166 / $F167 * K168, 0) -> 
B171: Operationele Kosten (zonder brandstof)
C173: Vervangingsinvestering
E174: =Input_Output!E42 -> Vervangingsinvestering | F174: =Input_Output!F42 ->  | G174: =Input_Output!G42 -> Euro/kWe
E175: =Input_Output!E22 -> Bruto elektrisch vermogen | F175: =Input_Output!F22 ->  | G175: =Input_Output!G22 -> 
E176: ="Bedrag " & LOWER(C173) -> Bedrag vervangingsinvestering | F176: =F174*F175 ->  | G176: Euro
E178: =E176 -> Bedrag vervangingsinvestering | F178: =F176 ->  | G178: =G176 -> Euro
E179: =E$26 -> Vervangingsinvestering Vlag | F179: =F$26 -> 0 | G179: Vlag | H179: 0 | I179: 0
E180: =E$85 -> Prijsindex operationele kosten | F180: =F$85 -> 0 | G180: Factor | H180: 0 | I180: 0 | K180: =K$85 -> 
E181: =C173 & " POS" -> Vervangingsinvestering POS | G181: Euro | H181: =SUM(J181:AN181) ->  | J181: =$F178 * J179 * J180 ->  | K181: =$F178 * K179 * K180 ->  | AN181: =$F178 * AN179 * AN180 -> 
C183: Vaste Operationele Kosten
E184: =Input_Output!E$38 -> Onderhoudskosten vast | F184: =Input_Output!F$38 ->  | G184: =Input_Output!G$38 -> 
E185: =Input_Output!E$22 -> Bruto elektrisch vermogen | F185: =Input_Output!F$22 ->  | G185: =Input_Output!G$22 -> 
E186: =E$20 -> Economische levensduur Vlag | F186: 0 | G186: Vlag | I186: 0
E187: =E$85 -> Prijsindex operationele kosten | F187: =F$85 -> 0 | G187: Factor | H187: 0 | I187: 0 | K187: =K$85 -> 
E188: Vaste Operationele Kosten POS | G188: Euro | H188: =SUM(J188:AN188) ->  | J188: =$F184 * $F185 * J186 * J187 ->  | K188: =$F184 * $F185 * K186 * K187 ->  | L188: =$F184 * $F185 * L186 * L187 -> 
C190: Variabele Operationele Kosten
E191: =Input_Output!E$39 -> Onderhoudskosten variabel | F191: =Input_Output!F$39 ->  | G191: =Input_Output!G$39 -> Euro/kWhe
E192: =Input_Output!E$40 -> Overige operationele kosten | F192: =Input_Output!F$40 ->  | G192: =Input_Output!G$40 -> Euro/kWhe
E193: =E$96 -> Bruto elektriciteitsproductie | F193: 0 | G193: kWh | I193: 0
E194: =E$85 -> Prijsindex operationele kosten | F194: =F$85 -> 0 | G194: Factor | H194: 0 | I194: 0
E195: Variabele Operationele Kosten POS | G195: Euro | H195: =SUM(J195:AN195) ->  | J195: =SUM($F191:$F192) * J193 * J194 ->  | K195: =SUM($F191:$F192) * K193 * K194 ->  | L195: =SUM($F191:$F192) * L193 * L194 -> 
C197: Totale Operationele Kosten
E198: =E181 -> Vervangingsinvestering POS | F198: =F181 -> 0 | G198: Euro | I198: 0 | J198: =J181 -> 
E199: =E$188 -> Vaste Operationele Kosten POS | F199: =F$188 -> 0 | G199: Euro | I199: 0 | L199: =L$188 ->  | N199: =N$188 -> 
E200: =E$195 -> Variabele Operationele Kosten POS | F200: =F$195 -> 0 | G200: Euro | I200: 0
E201: Operationele Kosten (zonder brandstof) POS | G201: Euro | H201: =SUM(J201:AN201) ->  | J201: =SUM(J198:J200) ->  | K201: =SUM(K198:K200) -> 
E202: =LEFT(E201, LEN(E201) - 4) -> Operationele Kosten (zonder brandstof) | G202: Euro | H202: =SUM(J202:AN202) ->  | J202: =- J201 ->  | K202: =- K201 ->  | L202: =- L201 -> 
B204: Brandstofkosten
E205: =Input_Output!E$45 -> Kosten brandstof | F205: =Input_Output!F$45 ->  | G205: =Input_Output!G$45 -> Euro/kWh
E206: =Input_Output!E$26 -> Bruto elektrisch rendement | F206: =Input_Output!F$26 ->  | G206: =Input_Output!G$26 -> [%]
E207: =E$96 -> Bruto elektriciteitsproductie | F207: =F$96 -> 0 | G207: kWh | I207: 0
E208: =E83 -> Prijsindex brandstof | F208: 0 | G208: Factor | H208: 0 | I208: 0
E209: Brandstofkosten POS | G209: Euro | H209: =SUM(J209:AN209) ->  | J209: =IF($F$206=0,0, $F205 * ((J207) / ($F206)) * J208) ->  | K209: =IF($F$206=0,0, $F205 * ((K207) / ($F206)) * K208) -> 
E210: =LEFT(E209, LEN(E209) - 4) -> Brandstofkosten | G210: Euro | H210: =SUM(J210:AN210) ->  | J210: =- J209 ->  | K210: =- K209 -> 
B212: In- en uitgaande stoffen
C214: Ingaande stoffen
E215: =Input_Output!E$49 -> Hoeveelheid ingaande stoffen (GFT,…) | F215: =Input_Output!F$49 ->  | G215: =Input_Output!G$49 -> ton
E216: =Input_Output!E$50 -> Kosten (+) / opbrengsten (-) ingaande stoffen | F216: =Input_Output!F$50 ->  | G216: =Input_Output!G$50 -> Euro/ton
E217: =E216 -> Kosten (+) / opbrengsten (-) ingaande stoffen | F217: =F215 * F216 ->  | G217: Euro
E218: =E$20 -> Economische levensduur Vlag | F218: =F20 -> 0 | G218: Vlag | I218: 0
E219: =E86 -> Prijsindex kosten/opbrengsten ingaande stoffen | F219: 0 | G219: Factor | H219: 0 | I219: 0
E220: Kosten ingaande stoffen POS | G220: Euro | H220: =SUM(J220:AN220) ->  | J220: =IF($F217>0, $F217 * J218 * J219, 0) ->  | K220: =IF($F217>0, $F217 * K218 * K219, 0) -> 
E221: Kosten ingaande stoffen | G221: Euro | H221: =SUM(J221:AN221) ->  | J221: =-1 * J220 ->  | K221: =-1 * K220 -> 
E222: Opbrengst ingaande stoffen | G222: Euro | H222: =SUM(J222:AN222) ->  | J222: =IF($F217<0, -1 * $F217 * J218 * J219, 0) ->  | K222: =IF($F217<0, -1 * $F217 * K218 * K219, 0) -> 
C224: Uitgaande stoffen
E225: =Input_Output!E52 -> Hoeveelheid uitgaande stoffen (digestaat, slib) | F225: =Input_Output!F52 ->  | G225: =Input_Output!G52 -> ton
E226: =Input_Output!E53 -> Kosten (+) / opbrengsten (-) uitgaande stoffen | F226: =Input_Output!F53 ->  | G226: =Input_Output!G53 -> Euro/ton
E227: =E226 -> Kosten (+) / opbrengsten (-) uitgaande stoffen | F227: =F225 * F226 ->  | G227: Euro
E228: =E$20 -> Economische levensduur Vlag | F228: 0 | G228: Vlag | I228: 0
E229: =E87 -> Prijsindex kosten/opbrengsten uitgaande stoffen | F229: 0 | G229: Factor | H229: 0 | I229: 0
E230: Kosten uitgaande stoffen POS | G230: Euro | H230: =SUM(J230:AN230) ->  | J230: =IF($F227>0, $F227 * J228 * J229, 0) ->  | K230: =IF($F227>0, $F227 * K228 * K229, 0) -> 
E231: Kosten uitgaande stoffen | G231: Euro | H231: =SUM(J231:AN231) ->  | J231: =-1 * J230 -> 
E232: Opbrengst uitgaande stoffen | G232: Euro | H232: =SUM(J232:AN232) ->  | J232: =IF($F227<0, -1 * $F227 * J228 * J229, 0) ->  | K232: =IF($F227<0, -1 * $F227 * K228 * K229, 0) -> 
B234: Operationele kasstroom
E235: =E$116 -> Marktwaarde elektriciteit | F235: =F116 -> 0 | G235: Euro | I235: 0
E236: =E$128 -> Waarde WKK warmteproductie | F236: =F128 -> 0 | G236: Euro | I236: 0
E237: =E$139 -> Besparing primaire brandstof | F237: =F139 -> 0 | G237: Euro | I237: 0
E238: =E$149 -> Opbrengst OT (GS) | F238: =F149 -> 0 | G238: Euro | I238: 0
E239: =E$169 -> Opbrengst OT (WKK) | F239: =F169 -> 0 | G239: Euro | I239: 0
E240: =E$202 -> Operationele Kosten (zonder brandstof) | F240: =F202 -> 0 | G240: Euro | I240: 0 | K240: =K202 -> 
... 247 more rows

Sheet FinResBedr
A1: =Input_Output!A1 -> Onrendabele Topberekening
A2: =Input_Output!F3 -> 1
J3: Jaar
F4: Constante | G4: Eenheid | H4: Totaal | J4: =Calc!J$4 -> 0 | K4: =Calc!K$4 -> 1 | L4: =Calc!L$4 -> 2 | M4: =Calc!M$4 -> 3 | N4: =Calc!N$4 -> 4 | O4: =Calc!O$4 -> 5 | P4: =Calc!P$4 -> 6 | Q4: =Calc!Q$4 -> 7 | R4: =Calc!R$4 -> 8 | S4: =Calc!S$4 -> 9 | T4: =Calc!T$4 -> 10 | U4: =Calc!U$4 -> 11 | V4: =Calc!V$4 -> 12 | W4: =Calc!W$4 -> 13 | X4: =Calc!X$4 -> 14 | Y4: =Calc!Y$4 -> 15 | Z4: =Calc!Z$4 -> 16 | AA4: =Calc!AA$4 -> 17 | AB4: =Calc!AB$4 -> 18 | AC4: =Calc!AC$4 -> 19 | AD4: =Calc!AD$4 -> 20 | AE4: =Calc!AE$4 -> 21 | AF4: =Calc!AF$4 -> 22 | AG4: =Calc!AG$4 -> 23 | AH4: =Calc!AH$4 -> 24 | AI4: =Calc!AI$4 -> 25 | AJ4: =Calc!AJ$4 -> 26 | AK4: =Calc!AK$4 -> 27 | AL4: =Calc!AL$4 -> 28 | AM4: =Calc!AM$4 -> 29 | AN4: =Calc!AN$4 -> 30
A6: Onrendabele Top
E8: Basis voor berekening onrendabele top | F8: GS | G8: GS: groene stroom/WKB: warmtekrachtbesparing
E9: Bedrijfsfinanciering of projectfinanciering? | F9: PF | G9: BF/PF
E11: =Calc!E531 -> Tussenkomst Onrendabele Top per MWh | F11: =Calc!F531 -> -335544320 | G11: =Calc!G531 -> Euro/MWh
E13: =Calc!E$527 -> Check rendement Project na belastingen | F13: =Calc!F$527 ->  | G13: =Calc!G$527 -> Check
A15: Productie
E17: =Calc!E96 -> Bruto elektriciteitsproductie | F17: =Calc!F96 -> 0 | G17: =Calc!G96 -> kWh | H17: =Calc!H96 ->  | I17: =Calc!I96 -> 0 | J17: =Calc!J96 ->  | K17: =Calc!K96 ->  | L17: =Calc!L96 ->  | M17: =Calc!M96 ->  | N17: =Calc!N96 ->  | O17: =Calc!O96 ->  | P17: =Calc!P96 ->  | Q17: =Calc!Q96 ->  | R17: =Calc!R96 ->  | S17: =Calc!S96 ->  | T17: =Calc!T96 ->  | U17: =Calc!U96 ->  | V17: =Calc!V96 ->  | W17: =Calc!W96 ->  | X17: =Calc!X96 ->  | Y17: =Calc!Y96 ->  | Z17: =Calc!Z96 ->  | AA17: =Calc!AA96 ->  | AB17: =Calc!AB96 ->  | AC17: =Calc!AC96 ->  | AD17: =Calc!AD96 ->  | AE17: =Calc!AE96 ->  | AF17: =Calc!AF96 ->  | AG17: =Calc!AG96 ->  | AH17: =Calc!AH96 ->  | AI17: =Calc!AI96 ->  | AJ17: =Calc!AJ96 ->  | AK17: =Calc!AK96 ->  | AL17: =Calc!AL96 ->  | AM17: =Calc!AM96 ->  | AN17: =Calc!AN96 -> 
E18: =Calc!E123 -> WKK warmteproductie (equivalent aardgasvolume) | F18: =Calc!F123 -> 0 | G18: =Calc!G123 -> kWh | H18: =Calc!H123 ->  | I18: =Calc!I123 -> 0 | J18: =Calc!J123 ->  | K18: =Calc!K123 ->  | L18: =Calc!L123 ->  | M18: =Calc!M123 ->  | N18: =Calc!N123 ->  | O18: =Calc!O123 ->  | P18: =Calc!P123 ->  | Q18: =Calc!Q123 ->  | R18: =Calc!R123 ->  | S18: =Calc!S123 ->  | T18: =Calc!T123 ->  | U18: =Calc!U123 ->  | V18: =Calc!V123 ->  | W18: =Calc!W123 ->  | X18: =Calc!X123 ->  | Y18: =Calc!Y123 ->  | Z18: =Calc!Z123 ->  | AA18: =Calc!AA123 ->  | AB18: =Calc!AB123 ->  | AC18: =Calc!AC123 ->  | AD18: =Calc!AD123 ->  | AE18: =Calc!AE123 ->  | AF18: =Calc!AF123 ->  | AG18: =Calc!AG123 ->  | AH18: =Calc!AH123 ->  | AI18: =Calc!AI123 ->  | AJ18: =Calc!AJ123 ->  | AK18: =Calc!AK123 ->  | AL18: =Calc!AL123 ->  | AM18: =Calc!AM123 ->  | AN18: =Calc!AN123 -> 
E19: =Calc!E134 -> Besparing primaire brandstof | F19: =Calc!F134 -> 0 | G19: =Calc!G134 -> kWh | H19: =Calc!H134 -> 0 | I19: =Calc!I134 -> 0 | J19: =Calc!J134 ->  | K19: =Calc!K134 ->  | L19: =Calc!L134 ->  | M19: =Calc!M134 ->  | N19: =Calc!N134 ->  | O19: =Calc!O134 ->  | P19: =Calc!P134 ->  | Q19: =Calc!Q134 ->  | R19: =Calc!R134 ->  | S19: =Calc!S134 ->  | T19: =Calc!T134 ->  | U19: =Calc!U134 ->  | V19: =Calc!V134 ->  | W19: =Calc!W134 ->  | X19: =Calc!X134 ->  | Y19: =Calc!Y134 ->  | Z19: =Calc!Z134 ->  | AA19: =Calc!AA134 ->  | AB19: =Calc!AB134 ->  | AC19: =Calc!AC134 ->  | AD19: =Calc!AD134 ->  | AE19: =Calc!AE134 ->  | AF19: =Calc!AF134 ->  | AG19: =Calc!AG134 ->  | AH19: =Calc!AH134 ->  | AI19: =Calc!AI134 ->  | AJ19: =Calc!AJ134 ->  | AK19: =Calc!AK134 ->  | AL19: =Calc!AL134 ->  | AM19: =Calc!AM134 ->  | AN19: =Calc!AN134 -> 
E20: =Calc!E161 -> Valoriseerbare warmtekrachtbesparing | F20: =Calc!F161 -> 0 | G20: =Calc!G161 -> kWh | H20: =Calc!H161 ->  | I20: =Calc!I161 -> 0 | J20: =Calc!J161 ->  | K20: =Calc!K161 ->  | L20: =Calc!L161 ->  | M20: =Calc!M161 ->  | N20: =Calc!N161 ->  | O20: =Calc!O161 ->  | P20: =Calc!P161 ->  | Q20: =Calc!Q161 ->  | R20: =Calc!R161 ->  | S20: =Calc!S161 ->  | T20: =Calc!T161 ->  | U20: =Calc!U161 ->  | V20: =Calc!V161 ->  | W20: =Calc!W161 ->  | X20: =Calc!X161 ->  | Y20: =Calc!Y161 ->  | Z20: =Calc!Z161 ->  | AA20: =Calc!AA161 ->  | AB20: =Calc!AB161 ->  | AC20: =Calc!AC161 ->  | AD20: =Calc!AD161 ->  | AE20: =Calc!AE161 ->  | AF20: =Calc!AF161 ->  | AG20: =Calc!AG161 ->  | AH20: =Calc!AH161 ->  | AI20: =Calc!AI161 ->  | AJ20: =Calc!AJ161 ->  | AK20: =Calc!AK161 ->  | AL20: =Calc!AL161 ->  | AM20: =Calc!AM161 ->  | AN20: =Calc!AN161 -> 
A23: Kasstroom
E25: Met/zonder tussenkomst onrendabele top? | F25: met | G25: met/zonder
B27: Investeringen
E28: =Calc!E258 -> Investering | F28: =Calc!F258 -> 0 | G28: =Calc!G258 -> Euro | H28: =Calc!H258 ->  | I28: =Calc!I258 -> 0 | J28: =Calc!J258 ->  | K28: =Calc!K258 -> 0 | L28: =Calc!L258 -> 0 | M28: =Calc!M258 -> 0 | N28: =Calc!N258 -> 0 | O28: =Calc!O258 -> 0 | P28: =Calc!P258 -> 0 | Q28: =Calc!Q258 -> 0 | R28: =Calc!R258 -> 0 | S28: =Calc!S258 -> 0 | T28: =Calc!T258 -> 0 | U28: =Calc!U258 -> 0 | V28: =Calc!V258 -> 0 | W28: =Calc!W258 -> 0 | X28: =Calc!X258 -> 0 | Y28: =Calc!Y258 -> 0 | Z28: =Calc!Z258 -> 0 | AA28: =Calc!AA258 -> 0 | AB28: =Calc!AB258 -> 0 | AC28: =Calc!AC258 -> 0 | AD28: =Calc!AD258 -> 0 | AE28: =Calc!AE258 -> 0 | AF28: =Calc!AF258 -> 0 | AG28: =Calc!AG258 -> 0 | AH28: =Calc!AH258 -> 0 | AI28: =Calc!AI258 -> 0 | AJ28: =Calc!AJ258 -> 0 | AK28: =Calc!AK258 -> 0 | AL28: =Calc!AL258 -> 0 | AM28: =Calc!AM258 -> 0 | AN28: =Calc!AN258 -> 0
E29: =Calc!E301 -> Investeringssteun | F29: =Calc!F301 -> 0 | G29: =Calc!G301 -> Euro | H29: =Calc!H301 ->  | I29: =Calc!I301 -> 0 | J29: =Calc!J301 ->  | K29: =Calc!K301 ->  | L29: =Calc!L301 ->  | M29: =Calc!M301 ->  | N29: =Calc!N301 ->  | O29: =Calc!O301 ->  | P29: =Calc!P301 ->  | Q29: =Calc!Q301 ->  | R29: =Calc!R301 ->  | S29: =Calc!S301 ->  | T29: =Calc!T301 ->  | U29: =Calc!U301 ->  | V29: =Calc!V301 ->  | W29: =Calc!W301 ->  | X29: =Calc!X301 ->  | Y29: =Calc!Y301 ->  | Z29: =Calc!Z301 ->  | AA29: =Calc!AA301 ->  | AB29: =Calc!AB301 ->  | AC29: =Calc!AC301 ->  | AD29: =Calc!AD301 ->  | AE29: =Calc!AE301 ->  | AF29: =Calc!AF301 ->  | AG29: =Calc!AG301 ->  | AH29: =Calc!AH301 ->  | AI29: =Calc!AI301 ->  | AJ29: =Calc!AJ301 ->  | AK29: =Calc!AK301 ->  | AL29: =Calc!AL301 ->  | AM29: =Calc!AM301 ->  | AN29: =Calc!AN301 -> 
E30: Kasstroom investeringen | G30: Euro | H30: =SUM(J30:AN30) ->  | J30: =J28+J29 ->  | K30: =K28+K29 -> 
B32: Operationele inkomsten
E33: =Calc!E535 -> Tussenkomst Onrendabele Top | F33: =Calc!F535 -> 0 | G33: =Calc!G535 -> Euro | H33: =Calc!H535 ->  | I33: =Calc!I535 -> 0 | J33: =Calc!J535 ->  | K33: =Calc!K535 ->  | L33: =Calc!L535 ->  | M33: =Calc!M535 ->  | N33: =Calc!N535 ->  | O33: =Calc!O535 ->  | P33: =Calc!P535 ->  | Q33: =Calc!Q535 ->  | R33: =Calc!R535 ->  | S33: =Calc!S535 ->  | T33: =Calc!T535 ->  | U33: =Calc!U535 ->  | V33: =Calc!V535 ->  | W33: =Calc!W535 ->  | X33: =Calc!X535 ->  | Y33: =Calc!Y535 ->  | Z33: =Calc!Z535 ->  | AA33: =Calc!AA535 ->  | AB33: =Calc!AB535 ->  | AC33: =Calc!AC535 ->  | AD33: =Calc!AD535 ->  | AE33: =Calc!AE535 ->  | AF33: =Calc!AF535 ->  | AG33: =Calc!AG535 ->  | AH33: =Calc!AH535 ->  | AI33: =Calc!AI535 ->  | AJ33: =Calc!AJ535 ->  | AK33: =Calc!AK535 ->  | AL33: =Calc!AL535 ->  | AM33: =Calc!AM535 ->  | AN33: =Calc!AN535 -> 
E34: =Calc!E116 -> Marktwaarde elektriciteit | F34: =Calc!F116 -> 0 | G34: =Calc!G116 -> Euro | H34: =Calc!H116 ->  | I34: =Calc!I116 -> 0 | J34: =Calc!J116 ->  | K34: =Calc!K116 ->  | L34: =Calc!L116 ->  | M34: =Calc!M116 ->  | N34: =Calc!N116 ->  | O34: =Calc!O116 ->  | P34: =Calc!P116 ->  | Q34: =Calc!Q116 ->  | R34: =Calc!R116 ->  | S34: =Calc!S116 ->  | T34: =Calc!T116 ->  | U34: =Calc!U116 ->  | V34: =Calc!V116 ->  | W34: =Calc!W116 ->  | X34: =Calc!X116 ->  | Y34: =Calc!Y116 ->  | Z34: =Calc!Z116 ->  | AA34: =Calc!AA116 ->  | AB34: =Calc!AB116 ->  | AC34: =Calc!AC116 ->  | AD34: =Calc!AD116 ->  | AE34: =Calc!AE116 ->  | AF34: =Calc!AF116 ->  | AG34: =Calc!AG116 ->  | AH34: =Calc!AH116 ->  | AI34: =Calc!AI116 ->  | AJ34: =Calc!AJ116 ->  | AK34: =Calc!AK116 ->  | AL34: =Calc!AL116 ->  | AM34: =Calc!AM116 ->  | AN34: =Calc!AN116 -> 
E35: =Calc!E128 -> Waarde WKK warmteproductie | F35: =Calc!F128 -> 0 | G35: =Calc!G128 -> Euro | H35: =Calc!H128 ->  | I35: =Calc!I128 -> 0 | J35: =Calc!J128 ->  | K35: =Calc!K128 ->  | L35: =Calc!L128 ->  | M35: =Calc!M128 ->  | N35: =Calc!N128 ->  | O35: =Calc!O128 ->  | P35: =Calc!P128 ->  | Q35: =Calc!Q128 ->  | R35: =Calc!R128 ->  | S35: =Calc!S128 ->  | T35: =Calc!T128 ->  | U35: =Calc!U128 ->  | V35: =Calc!V128 ->  | W35: =Calc!W128 ->  | X35: =Calc!X128 ->  | Y35: =Calc!Y128 ->  | Z35: =Calc!Z128 ->  | AA35: =Calc!AA128 ->  | AB35: =Calc!AB128 ->  | AC35: =Calc!AC128 ->  | AD35: =Calc!AD128 ->  | AE35: =Calc!AE128 ->  | AF35: =Calc!AF128 ->  | AG35: =Calc!AG128 ->  | AH35: =Calc!AH128 ->  | AI35: =Calc!AI128 ->  | AJ35: =Calc!AJ128 ->  | AK35: =Calc!AK128 ->  | AL35: =Calc!AL128 ->  | AM35: =Calc!AM128 ->  | AN35: =Calc!AN128 -> 
E36: =Calc!E139 -> Besparing primaire brandstof | F36: =Calc!F139 -> 0 | G36: =Calc!G139 -> Euro | H36: =Calc!H139 ->  | I36: =Calc!I139 -> 0 | J36: =Calc!J139 ->  | K36: =Calc!K139 ->  | L36: =Calc!L139 ->  | M36: =Calc!M139 ->  | N36: =Calc!N139 ->  | O36: =Calc!O139 ->  | P36: =Calc!P139 ->  | Q36: =Calc!Q139 ->  | R36: =Calc!R139 ->  | S36: =Calc!S139 ->  | T36: =Calc!T139 ->  | U36: =Calc!U139 ->  | V36: =Calc!V139 ->  | W36: =Calc!W139 ->  | X36: =Calc!X139 ->  | Y36: =Calc!Y139 ->  | Z36: =Calc!Z139 ->  | AA36: =Calc!AA139 ->  | AB36: =Calc!AB139 ->  | AC36: =Calc!AC139 ->  | AD36: =Calc!AD139 ->  | AE36: =Calc!AE139 ->  | AF36: =Calc!AF139 ->  | AG36: =Calc!AG139 ->  | AH36: =Calc!AH139 ->  | AI36: =Calc!AI139 ->  | AJ36: =Calc!AJ139 ->  | AK36: =Calc!AK139 ->  | AL36: =Calc!AL139 ->  | AM36: =Calc!AM139 ->  | AN36: =Calc!AN139 -> 
E37: =Calc!E149 -> Opbrengst OT (GS) | F37: =Calc!F149 -> 0 | G37: =Calc!G149 -> Euro | H37: =Calc!H149 ->  | I37: =Calc!I149 -> 0 | J37: =Calc!J149 ->  | K37: =Calc!K149 ->  | L37: =Calc!L149 ->  | M37: =Calc!M149 ->  | N37: =Calc!N149 ->  | O37: =Calc!O149 ->  | P37: =Calc!P149 ->  | Q37: =Calc!Q149 ->  | R37: =Calc!R149 ->  | S37: =Calc!S149 ->  | T37: =Calc!T149 ->  | U37: =Calc!U149 ->  | V37: =Calc!V149 ->  | W37: =Calc!W149 ->  | X37: =Calc!X149 ->  | Y37: =Calc!Y149 ->  | Z37: =Calc!Z149 ->  | AA37: =Calc!AA149 ->  | AB37: =Calc!AB149 ->  | AC37: =Calc!AC149 ->  | AD37: =Calc!AD149 ->  | AE37: =Calc!AE149 ->  | AF37: =Calc!AF149 ->  | AG37: =Calc!AG149 ->  | AH37: =Calc!AH149 ->  | AI37: =Calc!AI149 ->  | AJ37: =Calc!AJ149 ->  | AK37: =Calc!AK149 ->  | AL37: =Calc!AL149 ->  | AM37: =Calc!AM149 ->  | AN37: =Calc!AN149 -> 
E38: =Calc!E169 -> Opbrengst OT (WKK) | F38: =Calc!F169 -> 0 | G38: =Calc!G169 -> Euro | H38: =Calc!H169 ->  | I38: =Calc!I169 -> 0 | J38: =Calc!J169 ->  | K38: =Calc!K169 ->  | L38: =Calc!L169 ->  | M38: =Calc!M169 ->  | N38: =Calc!N169 ->  | O38: =Calc!O169 ->  | P38: =Calc!P169 ->  | Q38: =Calc!Q169 ->  | R38: =Calc!R169 ->  | S38: =Calc!S169 ->  | T38: =Calc!T169 ->  | U38: =Calc!U169 ->  | V38: =Calc!V169 ->  | W38: =Calc!W169 ->  | X38: =Calc!X169 ->  | Y38: =Calc!Y169 ->  | Z38: =Calc!Z169 ->  | AA38: =Calc!AA169 ->  | AB38: =Calc!AB169 ->  | AC38: =Calc!AC169 ->  | AD38: =Calc!AD169 ->  | AE38: =Calc!AE169 ->  | AF38: =Calc!AF169 ->  | AG38: =Calc!AG169 ->  | AH38: =Calc!AH169 ->  | AI38: =Calc!AI169 ->  | AJ38: =Calc!AJ169 ->  | AK38: =Calc!AK169 ->  | AL38: =Calc!AL169 ->  | AM38: =Calc!AM169 ->  | AN38: =Calc!AN169 -> 
E39: =Calc!E222 -> Opbrengst ingaande stoffen | F39: =Calc!F222 -> 0 | G39: =Calc!G222 -> Euro | H39: =Calc!H222 ->  | I39: =Calc!I222 -> 0 | J39: =Calc!J222 ->  | K39: =Calc!K222 ->  | L39: =Calc!L222 ->  | M39: =Calc!M222 ->  | N39: =Calc!N222 ->  | O39: =Calc!O222 ->  | P39: =Calc!P222 ->  | Q39: =Calc!Q222 ->  | R39: =Calc!R222 ->  | S39: =Calc!S222 ->  | T39: =Calc!T222 ->  | U39: =Calc!U222 ->  | V39: =Calc!V222 ->  | W39: =Calc!W222 ->  | X39: =Calc!X222 ->  | Y39: =Calc!Y222 ->  | Z39: =Calc!Z222 ->  | AA39: =Calc!AA222 ->  | AB39: =Calc!AB222 ->  | AC39: =Calc!AC222 ->  | AD39: =Calc!AD222 ->  | AE39: =Calc!AE222 ->  | AF39: =Calc!AF222 ->  | AG39: =Calc!AG222 ->  | AH39: =Calc!AH222 ->  | AI39: =Calc!AI222 ->  | AJ39: =Calc!AJ222 ->  | AK39: =Calc!AK222 ->  | AL39: =Calc!AL222 ->  | AM39: =Calc!AM222 ->  | AN39: =Calc!AN222 -> 
E40: =Calc!E232 -> Opbrengst uitgaande stoffen | F40: =Calc!F232 -> 0 | G40: =Calc!G232 -> Euro | H40: =Calc!H232 ->  | I40: =Calc!I232 -> 0 | J40: =Calc!J232 ->  | K40: =Calc!K232 ->  | L40: =Calc!L232 ->  | M40: =Calc!M232 ->  | N40: =Calc!N232 ->  | O40: =Calc!O232 ->  | P40: =Calc!P232 ->  | Q40: =Calc!Q232 ->  | R40: =Calc!R232 ->  | S40: =Calc!S232 ->  | T40: =Calc!T232 ->  | U40: =Calc!U232 ->  | V40: =Calc!V232 ->  | W40: =Calc!W232 ->  | X40: =Calc!X232 ->  | Y40: =Calc!Y232 ->  | Z40: =Calc!Z232 ->  | AA40: =Calc!AA232 ->  | AB40: =Calc!AB232 ->  | AC40: =Calc!AC232 ->  | AD40: =Calc!AD232 ->  | AE40: =Calc!AE232 ->  | AF40: =Calc!AF232 ->  | AG40: =Calc!AG232 ->  | AH40: =Calc!AH232 ->  | AI40: =Calc!AI232 ->  | AJ40: =Calc!AJ232 ->  | AK40: =Calc!AK232 ->  | AL40: =Calc!AL232 ->  | AM40: =Calc!AM232 ->  | AN40: =Calc!AN232 -> 
E41: =B32 -> Operationele inkomsten | G41: Euro | H41: =SUM(J41:AN41) ->  | J41: =SUM(J33:J40) -> 
B43: Operationele kosten
E44: =Calc!E202 -> Operationele Kosten (zonder brandstof) | F44: =Calc!F202 -> 0 | G44: =Calc!G202 -> Euro | H44: =Calc!H202 ->  | I44: =Calc!I202 -> 0 | J44: =Calc!J202 ->  | K44: =Calc!K202 ->  | L44: =Calc!L202 ->  | M44: =Calc!M202 ->  | N44: =Calc!N202 ->  | O44: =Calc!O202 ->  | P44: =Calc!P202 ->  | Q44: =Calc!Q202 ->  | R44: =Calc!R202 ->  | S44: =Calc!S202 ->  | T44: =Calc!T202 ->  | U44: =Calc!U202 ->  | V44: =Calc!V202 ->  | W44: =Calc!W202 ->  | X44: =Calc!X202 ->  | Y44: =Calc!Y202 ->  | Z44: =Calc!Z202 ->  | AA44: =Calc!AA202 ->  | AB44: =Calc!AB202 ->  | AC44: =Calc!AC202 ->  | AD44: =Calc!AD202 ->  | AE44: =Calc!AE202 ->  | AF44: =Calc!AF202 ->  | AG44: =Calc!AG202 ->  | AH44: =Calc!AH202 ->  | AI44: =Calc!AI202 ->  | AJ44: =Calc!AJ202 ->  | AK44: =Calc!AK202 ->  | AL44: =Calc!AL202 ->  | AM44: =Calc!AM202 ->  | AN44: =Calc!AN202 -> 
E45: =Calc!E210 -> Brandstofkosten | F45: =Calc!F210 -> 0 | G45: =Calc!G210 -> Euro | H45: =Calc!H210 ->  | I45: =Calc!I210 -> 0 | J45: =Calc!J210 ->  | K45: =Calc!K210 ->  | L45: =Calc!L210 ->  | M45: =Calc!M210 ->  | N45: =Calc!N210 ->  | O45: =Calc!O210 ->  | P45: =Calc!P210 ->  | Q45: =Calc!Q210 ->  | R45: =Calc!R210 ->  | S45: =Calc!S210 ->  | T45: =Calc!T210 ->  | U45: =Calc!U210 ->  | V45: =Calc!V210 ->  | W45: =Calc!W210 ->  | X45: =Calc!X210 ->  | Y45: =Calc!Y210 ->  | Z45: =Calc!Z210 ->  | AA45: =Calc!AA210 ->  | AB45: =Calc!AB210 ->  | AC45: =Calc!AC210 ->  | AD45: =Calc!AD210 ->  | AE45: =Calc!AE210 ->  | AF45: =Calc!AF210 ->  | AG45: =Calc!AG210 ->  | AH45: =Calc!AH210 ->  | AI45: =Calc!AI210 ->  | AJ45: =Calc!AJ210 ->  | AK45: =Calc!AK210 ->  | AL45: =Calc!AL210 ->  | AM45: =Calc!AM210 ->  | AN45: =Calc!AN210 -> 
E46: =Calc!E221 -> Kosten ingaande stoffen | F46: =Calc!F221 -> 0 | G46: =Calc!G221 -> Euro | H46: =Calc!H221 ->  | I46: =Calc!I221 -> 0 | J46: =Calc!J221 ->  | K46: =Calc!K221 ->  | L46: =Calc!L221 ->  | M46: =Calc!M221 ->  | N46: =Calc!N221 ->  | O46: =Calc!O221 ->  | P46: =Calc!P221 ->  | Q46: =Calc!Q221 ->  | R46: =Calc!R221 ->  | S46: =Calc!S221 ->  | T46: =Calc!T221 ->  | U46: =Calc!U221 ->  | V46: =Calc!V221 ->  | W46: =Calc!W221 ->  | X46: =Calc!X221 ->  | Y46: =Calc!Y221 ->  | Z46: =Calc!Z221 ->  | AA46: =Calc!AA221 ->  | AB46: =Calc!AB221 ->  | AC46: =Calc!AC221 ->  | AD46: =Calc!AD221 ->  | AE46: =Calc!AE221 ->  | AF46: =Calc!AF221 ->  | AG46: =Calc!AG221 ->  | AH46: =Calc!AH221 ->  | AI46: =Calc!AI221 ->  | AJ46: =Calc!AJ221 ->  | AK46: =Calc!AK221 ->  | AL46: =Calc!AL221 ->  | AM46: =Calc!AM221 ->  | AN46: =Calc!AN221 -> 
E47: =Calc!E231 -> Kosten uitgaande stoffen | F47: =Calc!F231 -> 0 | G47: =Calc!G231 -> Euro | H47: =Calc!H231 ->  | I47: =Calc!I231 -> 0 | J47: =Calc!J231 ->  | K47: =Calc!K231 ->  | L47: =Calc!L231 ->  | M47: =Calc!M231 ->  | N47: =Calc!N231 ->  | O47: =Calc!O231 ->  | P47: =Calc!P231 ->  | Q47: =Calc!Q231 ->  | R47: =Calc!R231 ->  | S47: =Calc!S231 ->  | T47: =Calc!T231 ->  | U47: =Calc!U231 ->  | V47: =Calc!V231 ->  | W47: =Calc!W231 ->  | X47: =Calc!X231 ->  | Y47: =Calc!Y231 ->  | Z47: =Calc!Z231 ->  | AA47: =Calc!AA231 ->  | AB47: =Calc!AB231 ->  | AC47: =Calc!AC231 ->  | AD47: =Calc!AD231 ->  | AE47: =Calc!AE231 ->  | AF47: =Calc!AF231 ->  | AG47: =Calc!AG231 ->  | AH47: =Calc!AH231 ->  | AI47: =Calc!AI231 ->  | AJ47: =Calc!AJ231 ->  | AK47: =Calc!AK231 ->  | AL47: =Calc!AL231 ->  | AM47: =Calc!AM231 ->  | AN47: =Calc!AN231 -> 
E48: =B43 -> Operationele kosten | G48: Euro | H48: =SUM(J48:AN48) ->  | J48: =SUM(J44:J47) ->  | K48: =SUM(K44:K47) -> 
B50: Belastingen
E51: =Calc!E547 -> Belastingen (-) / Belastingverliezen (+) | F51: =Calc!F547 -> 0 | G51: =Calc!G547 -> Euro | H51: =Calc!H547 ->  | I51: =Calc!I547 -> 0 | J51: =Calc!J547 ->  | K51: =Calc!K547 ->  | L51: =Calc!L547 ->  | M51: =Calc!M547 ->  | N51: =Calc!N547 ->  | O51: =Calc!O547 ->  | P51: =Calc!P547 ->  | Q51: =Calc!Q547 ->  | R51: =Calc!R547 ->  | S51: =Calc!S547 ->  | T51: =Calc!T547 ->  | U51: =Calc!U547 ->  | V51: =Calc!V547 ->  | W51: =Calc!W547 ->  | X51: =Calc!X547 ->  | Y51: =Calc!Y547 ->  | Z51: =Calc!Z547 ->  | AA51: =Calc!AA547 ->  | AB51: =Calc!AB547 ->  | AC51: =Calc!AC547 ->  | AD51: =Calc!AD547 ->  | AE51: =Calc!AE547 ->  | AF51: =Calc!AF547 ->  | AG51: =Calc!AG547 ->  | AH51: =Calc!AH547 ->  | AI51: =Calc!AI547 ->  | AJ51: =Calc!AJ547 ->  | AK51: =Calc!AK547 ->  | AL51: =Calc!AL547 ->  | AM51: =Calc!AM547 ->  | AN51: =Calc!AN547 -> 
E52: Kasstroom belastingen | G52: Euro | H52: =SUM(J52:AN52) ->  | J52: =J51 ->  | K52: =K51 -> 
B54: Lening
E55: =Calc!E337 -> Trekking lening | F55: =Calc!F337 -> 0 | G55: =Calc!G337 -> Euro | H55: =Calc!H337 ->  | I55: =Calc!I337 -> 0 | J55: =Calc!J337 ->  | K55: =Calc!K337 -> 0 | L55: =Calc!L337 -> 0 | M55: =Calc!M337 -> 0 | N55: =Calc!N337 -> 0 | O55: =Calc!O337 -> 0 | P55: =Calc!P337 -> 0 | Q55: =Calc!Q337 -> 0 | R55: =Calc!R337 -> 0 | S55: =Calc!S337 -> 0 | T55: =Calc!T337 -> 0 | U55: =Calc!U337 -> 0 | V55: =Calc!V337 -> 0 | W55: =Calc!W337 -> 0 | X55: =Calc!X337 -> 0 | Y55: =Calc!Y337 -> 0 | Z55: =Calc!Z337 -> 0 | AA55: =Calc!AA337 -> 0 | AB55: =Calc!AB337 -> 0 | AC55: =Calc!AC337 -> 0 | AD55: =Calc!AD337 -> 0 | AE55: =Calc!AE337 -> 0 | AF55: =Calc!AF337 -> 0 | AG55: =Calc!AG337 -> 0 | AH55: =Calc!AH337 -> 0 | AI55: =Calc!AI337 -> 0 | AJ55: =Calc!AJ337 -> 0 | AK55: =Calc!AK337 -> 0 | AL55: =Calc!AL337 -> 0 | AM55: =Calc!AM337 -> 0 | AN55: =Calc!AN337 -> 0
E56: =Calc!E353 -> Aflossing lening | F56: =Calc!F353 -> 0 | G56: =Calc!G353 -> Euro | H56: =Calc!H353 ->  | I56: =Calc!I353 -> 0 | J56: =Calc!J353 ->  | K56: =Calc!K353 ->  | L56: =Calc!L353 ->  | M56: =Calc!M353 ->  | N56: =Calc!N353 ->  | O56: =Calc!O353 ->  | P56: =Calc!P353 ->  | Q56: =Calc!Q353 ->  | R56: =Calc!R353 ->  | S56: =Calc!S353 ->  | T56: =Calc!T353 ->  | U56: =Calc!U353 ->  | V56: =Calc!V353 ->  | W56: =Calc!W353 ->  | X56: =Calc!X353 ->  | Y56: =Calc!Y353 ->  | Z56: =Calc!Z353 ->  | AA56: =Calc!AA353 ->  | AB56: =Calc!AB353 ->  | AC56: =Calc!AC353 ->  | AD56: =Calc!AD353 ->  | AE56: =Calc!AE353 ->  | AF56: =Calc!AF353 ->  | AG56: =Calc!AG353 ->  | AH56: =Calc!AH353 ->  | AI56: =Calc!AI353 ->  | AJ56: =Calc!AJ353 ->  | AK56: =Calc!AK353 ->  | AL56: =Calc!AL353 ->  | AM56: =Calc!AM353 ->  | AN56: =Calc!AN353 -> 
E57: =Calc!E345 -> Rente lening | F57: =Calc!F345 -> 0 | G57: =Calc!G345 -> Euro | H57: =Calc!H345 ->  | I57: =Calc!I345 -> 0 | J57: =Calc!J345 ->  | K57: =Calc!K345 ->  | L57: =Calc!L345 ->  | M57: =Calc!M345 ->  | N57: =Calc!N345 ->  | O57: =Calc!O345 ->  | P57: =Calc!P345 ->  | Q57: =Calc!Q345 ->  | R57: =Calc!R345 ->  | S57: =Calc!S345 ->  | T57: =Calc!T345 ->  | U57: =Calc!U345 ->  | V57: =Calc!V345 ->  | W57: =Calc!W345 ->  | X57: =Calc!X345 ->  | Y57: =Calc!Y345 ->  | Z57: =Calc!Z345 ->  | AA57: =Calc!AA345 ->  | AB57: =Calc!AB345 ->  | AC57: =Calc!AC345 ->  | AD57: =Calc!AD345 ->  | AE57: =Calc!AE345 ->  | AF57: =Calc!AF345 ->  | AG57: =Calc!AG345 ->  | AH57: =Calc!AH345 ->  | AI57: =Calc!AI345 ->  | AJ57: =Calc!AJ345 ->  | AK57: =Calc!AK345 ->  | AL57: =Calc!AL345 ->  | AM57: =Calc!AM345 ->  | AN57: =Calc!AN345 -> 
E58: Kasstroom lening | G58: Euro | H58: =SUM(J58:AN58) ->  | J58: =SUM(J55:J57) ->  | K58: =SUM(K55:K57) -> 
B60: Projectkasstroom voor belastingen
E61: =E30 -> Kasstroom investeringen | F61: =F30 -> 0 | G61: Euro | I61: 0
E62: =E41 -> Operationele inkomsten | F62: =F41 -> 0 | G62: Euro | I62: 0
E63: =E48 -> Operationele kosten | F63: =F48 -> 0 | G63: Euro | I63: 0
E64: =B60 -> Projectkasstroom voor belastingen | G64: Euro | H64: =SUM(J64:AN64) ->  | J64: =SUM(J61:J63) -> 
B66: Projectkasstroom na belastingen
E67: =E64 -> Projectkasstroom voor belastingen | F67: =F64 -> 0 | G67: Euro | I67: 0 | K67: =K64 -> 
E68: =E52 -> Kasstroom belastingen | F68: =F52 -> 0 | G68: Euro | I68: 0
E69: =B66 -> Projectkasstroom na belastingen | G69: Euro | H69: =SUM(J69:AN69) ->  | J69: =SUM(J67:J68) -> 
E70: ="NCW " & E69 -> NCW Projectkasstroom na belastingen | F70: =NPV(Input_Output!F92,J69:AN69) * (1+Input_Output!F92) -> 
E71: Project IRR na belastingen | F71: =IRR(J69:AN69, F72) ->  | G71: [%]
E72: Gissing IRR: | F72: 0.05
A74: Resultatenrekening
B76: Winst voor belastingen
E77: =E41 -> Operationele inkomsten | F77: =F41 -> 0 | G77: Euro | I77: 0
E78: =E48 -> Operationele kosten | F78: =F48 -> 0 | G78: Euro | I78: 0
E79: =Calc!E265 -> Afschrijvingen | F79: =Calc!F265 -> 0 | G79: =Calc!G265 -> Euro | H79: =Calc!H265 ->  | I79: =Calc!I265 -> 0 | J79: =Calc!J265 ->  | K79: =Calc!K265 ->  | L79: =Calc!L265 ->  | M79: =Calc!M265 ->  | N79: =Calc!N265 ->  | O79: =Calc!O265 ->  | P79: =Calc!P265 ->  | Q79: =Calc!Q265 ->  | R79: =Calc!R265 ->  | S79: =Calc!S265 ->  | T79: =Calc!T265 ->  | U79: =Calc!U265 ->  | V79: =Calc!V265 ->  | W79: =Calc!W265 ->  | X79: =Calc!X265 ->  | Y79: =Calc!Y265 ->  | Z79: =Calc!Z265 ->  | AA79: =Calc!AA265 ->  | AB79: =Calc!AB265 ->  | AC79: =Calc!AC265 ->  | AD79: =Calc!AD265 ->  | AE79: =Calc!AE265 ->  | AF79: =Calc!AF265 ->  | AG79: =Calc!AG265 ->  | AH79: =Calc!AH265 ->  | AI79: =Calc!AI265 ->  | AJ79: =Calc!AJ265 ->  | AK79: =Calc!AK265 ->  | AL79: =Calc!AL265 ->  | AM79: =Calc!AM265 ->  | AN79: =Calc!AN265 -> 
E80: =Calc!E345 -> Rente lening | F80: =Calc!F345 -> 0 | G80: =Calc!G345 -> Euro | H80: =Calc!H345 ->  | I80: =Calc!I345 -> 0 | J80: =Calc!J345 ->  | K80: =Calc!K345 ->  | L80: =Calc!L345 ->  | M80: =Calc!M345 ->  | N80: =Calc!N345 ->  | O80: =Calc!O345 ->  | P80: =Calc!P345 ->  | Q80: =Calc!Q345 ->  | R80: =Calc!R345 ->  | S80: =Calc!S345 ->  | T80: =Calc!T345 ->  | U80: =Calc!U345 ->  | V80: =Calc!V345 ->  | W80: =Calc!W345 ->  | X80: =Calc!X345 ->  | Y80: =Calc!Y345 ->  | Z80: =Calc!Z345 ->  | AA80: =Calc!AA345 ->  | AB80: =Calc!AB345 ->  | AC80: =Calc!AC345 ->  | AD80: =Calc!AD345 ->  | AE80: =Calc!AE345 ->  | AF80: =Calc!AF345 ->  | AG80: =Calc!AG345 ->  | AH80: =Calc!AH345 ->  | AI80: =Calc!AI345 ->  | AJ80: =Calc!AJ345 ->  | AK80: =Calc!AK345 ->  | AL80: =Calc!AL345 ->  | AM80: =Calc!AM345 ->  | AN80: =Calc!AN345 -> 
E81: =Calc!E308 -> In resultaat nemen van Investeringssteun | F81: =Calc!F308 -> 0 | G81: =Calc!G308 -> Euro | H81: =Calc!H308 ->  | I81: =Calc!I308 -> 0 | J81: =Calc!J308 ->  | K81: =Calc!K308 ->  | L81: =Calc!L308 ->  | M81: =Calc!M308 ->  | N81: =Calc!N308 ->  | O81: =Calc!O308 ->  | P81: =Calc!P308 ->  | Q81: =Calc!Q308 ->  | R81: =Calc!R308 ->  | S81: =Calc!S308 ->  | T81: =Calc!T308 ->  | U81: =Calc!U308 ->  | V81: =Calc!V308 ->  | W81: =Calc!W308 ->  | X81: =Calc!X308 ->  | Y81: =Calc!Y308 ->  | Z81: =Calc!Z308 ->  | AA81: =Calc!AA308 ->  | AB81: =Calc!AB308 ->  | AC81: =Calc!AC308 ->  | AD81: =Calc!AD308 ->  | AE81: =Calc!AE308 ->  | AF81: =Calc!AF308 ->  | AG81: =Calc!AG308 ->  | AH81: =Calc!AH308 ->  | AI81: =Calc!AI308 ->  | AJ81: =Calc!AJ308 ->  | AK81: =Calc!AK308 ->  | AL81: =Calc!AL308 ->  | AM81: =Calc!AM308 ->  | AN81: =Calc!AN308 -> 
E82: =B76 -> Winst voor belastingen | G82: Euro | H82: =SUM(J82:AN82) ->  | J82: =SUM(J77:J81) ->  | K82: =SUM(K77:K81) -> 
B84: Belastingen op het resultaat
E85: =E82 -> Winst voor belastingen | F85: =F82 -> 0 | G85: Euro | I85: 0
D86: Min: | E86: =Calc!E539 -> Overgedragen Verliezen | F86: =Calc!F539 -> 0 | G86: =Calc!G539 -> Euro | H86: =Calc!H539 ->  | I86: =Calc!I539 -> 0 | J86: =Calc!J539 ->  | K86: =Calc!K539 ->  | L86: =Calc!L539 ->  | M86: =Calc!M539 ->  | N86: =Calc!N539 ->  | O86: =Calc!O539 ->  | P86: =Calc!P539 ->  | Q86: =Calc!Q539 ->  | R86: =Calc!R539 ->  | S86: =Calc!S539 ->  | T86: =Calc!T539 ->  | U86: =Calc!U539 ->  | V86: =Calc!V539 ->  | W86: =Calc!W539 ->  | X86: =Calc!X539 ->  | Y86: =Calc!Y539 ->  | Z86: =Calc!Z539 ->  | AA86: =Calc!AA539 ->  | AB86: =Calc!AB539 ->  | AC86: =Calc!AC539 ->  | AD86: =Calc!AD539 ->  | AE86: =Calc!AE539 ->  | AF86: =Calc!AF539 ->  | AG86: =Calc!AG539 ->  | AH86: =Calc!AH539 ->  | AI86: =Calc!AI539 ->  | AJ86: =Calc!AJ539 ->  | AK86: =Calc!AK539 ->  | AL86: =Calc!AL539 ->  | AM86: =Calc!AM539 ->  | AN86: =Calc!AN539 -> 
D87: Min: | E87: =Calc!E543 -> Investeringsaftrek | F87: =Calc!F543 -> 0 | G87: =Calc!G543 -> Euro | H87: =Calc!H543 ->  | I87: =Calc!I543 -> 0 | J87: =Calc!J543 ->  | K87: =Calc!K543 ->  | L87: =Calc!L543 ->  | M87: =Calc!M543 ->  | N87: =Calc!N543 ->  | O87: =Calc!O543 ->  | P87: =Calc!P543 ->  | Q87: =Calc!Q543 ->  | R87: =Calc!R543 ->  | S87: =Calc!S543 ->  | T87: =Calc!T543 ->  | U87: =Calc!U543 ->  | V87: =Calc!V543 ->  | W87: =Calc!W543 ->  | X87: =Calc!X543 ->  | Y87: =Calc!Y543 ->  | Z87: =Calc!Z543 ->  | AA87: =Calc!AA543 ->  | AB87: =Calc!AB543 ->  | AC87: =Calc!AC543 ->  | AD87: =Calc!AD543 ->  | AE87: =Calc!AE543 ->  | AF87: =Calc!AF543 ->  | AG87: =Calc!AG543 ->  | AH87: =Calc!AH543 ->  | AI87: =Calc!AI543 ->  | AJ87: =Calc!AJ543 ->  | AK87: =Calc!AK543 ->  | AL87: =Calc!AL543 ->  | AM87: =Calc!AM543 ->  | AN87: =Calc!AN543 -> 
E88: Fiscale winst | G88: Euro | H88: =SUM(J88:AN88) ->  | J88: =J85 - SUM(J86:J87) -> 
E89: =Input_Output!E71 -> Vennootschapsbelasting | F89: =Input_Output!F71 ->  | G89: =Input_Output!G71 -> [%]
E90: =Calc!E547 -> Belastingen (-) / Belastingverliezen (+) | F90: =Calc!F547 -> 0 | G90: =Calc!G547 -> Euro | H90: =Calc!H547 ->  | I90: =Calc!I547 -> 0 | J90: =Calc!J547 ->  | K90: =Calc!K547 ->  | L90: =Calc!L547 ->  | M90: =Calc!M547 ->  | N90: =Calc!N547 ->  | O90: =Calc!O547 ->  | P90: =Calc!P547 ->  | Q90: =Calc!Q547 ->  | R90: =Calc!R547 ->  | S90: =Calc!S547 ->  | T90: =Calc!T547 ->  | U90: =Calc!U547 ->  | V90: =Calc!V547 ->  | W90: =Calc!W547 ->  | X90: =Calc!X547 ->  | Y90: =Calc!Y547 ->  | Z90: =Calc!Z547 ->  | AA90: =Calc!AA547 ->  | AB90: =Calc!AB547 ->  | AC90: =Calc!AC547 ->  | AD90: =Calc!AD547 ->  | AE90: =Calc!AE547 ->  | AF90: =Calc!AF547 ->  | AG90: =Calc!AG547 ->  | AH90: =Calc!AH547 ->  | AI90: =Calc!AI547 ->  | AJ90: =Calc!AJ547 ->  | AK90: =Calc!AK547 ->  | AL90: =Calc!AL547 ->  | AM90: =Calc!AM547 ->  | AN90: =Calc!AN547 -> 
B92: Winst na belastingen
E93: =E82 -> Winst voor belastingen | F93: =F82 -> 0 | G93: Euro | I93: 0
E94: =Calc!E547 -> Belastingen (-) / Belastingverliezen (+) | F94: =Calc!F547 -> 0 | G94: =Calc!G547 -> Euro | H94: =Calc!H547 ->  | I94: =Calc!I547 -> 0 | J94: =Calc!J547 ->  | K94: =Calc!K547 ->  | L94: =Calc!L547 ->  | M94: =Calc!M547 ->  | N94: =Calc!N547 ->  | O94: =Calc!O547 ->  | P94: =Calc!P547 ->  | Q94: =Calc!Q547 ->  | R94: =Calc!R547 ->  | S94: =Calc!S547 ->  | T94: =Calc!T547 ->  | U94: =Calc!U547 ->  | V94: =Calc!V547 ->  | W94: =Calc!W547 ->  | X94: =Calc!X547 ->  | Y94: =Calc!Y547 ->  | Z94: =Calc!Z547 ->  | AA94: =Calc!AA547 ->  | AB94: =Calc!AB547 ->  | AC94: =Calc!AC547 ->  | AD94: =Calc!AD547 ->  | AE94: =Calc!AE547 ->  | AF94: =Calc!AF547 ->  | AG94: =Calc!AG547 ->  | AH94: =Calc!AH547 ->  | AI94: =Calc!AI547 ->  | AJ94: =Calc!AJ547 ->  | AK94: =Calc!AK547 ->  | AL94: =Calc!AL547 ->  | AM94: =Calc!AM547 ->  | AN94: =Calc!AN547 -> 
E95: =B92 -> Winst na belastingen | G95: Euro | H95: =SUM(J95:AN95) ->  | J95: =J93+J94 ->  | K95: =K93+K94 -> 

Sheet Blad1
